Workbook

Sheet 应用经济学
A1: 中国石油大学（北京）研究生综合测评汇总表（工商管理学院-应用经济学专业）
A2: 学号 | B2: 姓名 | C2: 德育成绩 | G2: 智育成绩 | K2: 文体成绩 | O2: 总分 | P2: 名次
C3: 基础分 | D3: 奖励分 | E3: 惩罚分 | F3: 总 分 | G3: 学习成绩分 | H3: 奖励分 | I3: 惩罚分 | J3: 总 分 | K3: 基本分 | L3: 奖励分 | M3: 惩罚分 | N3: 总 分
A4: 2013217002 | B4: 侯运 | C4: 98.7988 | D4: 16 | E4: 0 | F4: =C4+D4 -> 114.7988 | G4: 90.1273 | H4: 7.47 | I4: 0 | J4: =G4+H4 -> 97.5973 | K4: 98.3594 | L4: 0 | M4: 0 | N4: =K4+L4 -> 98.3594 | O4: =F4*0.2+J4*0.7+N4*0.1 -> 101.1138 | P4: 1
A5: 2013217009 | B5: 冯玉南 | C5: 99.0528 | D5: 13 | E5: 0 | F5: 112.0528 | G5: 89.0136 | H5: 6 | I5: 0 | J5: 95.0136 | K5: 98.8219 | L5: 2 | M5: 0 | N5: 100.8219 | O5: 99.0023 | P5: 2
A6: 2013217010 | B6: 吴珉颉 | C6: 99.3809 | D6: 14 | E6: 0 | F6: 113.3809 | G6: 89.1500 | H6: 4 | I6: 0 | J6: 93.1500 | K6: 98.9375 | L6: 2 | M6: 0 | N6: 100.9375 | O6: 97.9749 | P6: 3
A7: 2013217008 | B7: 李艳丽 | C7: 98.8384 | D7: 1 | E7: 0 | F7: 99.8384 | G7: 94.1875 | H7: 2 | I7: 0 | J7: 96.1875 | K7: 98.1875 | L7: 0 | M7: 0 | N7: 98.1875 | O7: 97.1177 | P7: 4
A8: 2013217013 | B8: 王晓宇 | C8: 98.2442 | D8: 7.8 | E8: 0 | F8: 106.0442 | G8: 88.0068 | H8: 4 | I8: 0 | J8: 92.0068 | K8: 98.2594 | L8: 0 | M8: 0 | N8: 98.2594 | O8: 95.4395 | P8: 5
A9: 2013217003 | B9: 邹坤 | C9: 97.3166 | D9: 5 | E9: 0 | F9: 102.3166 | G9: 90.7783 | H9: 2 | I9: 0 | J9: 92.7783 | K9: 98.3813 | L9: 0 | M9: 0 | N9: 98.3813 | O9: 95.2462 | P9: 6
A10: 2013217006 | B10: 董昊鑫 | C10: 98.7331 | D10: 9.8 | E10: 0 | F10: 108.5331 | G10: 87.5750 | H10: 2 | I10: 0 | J10: 89.5750 | K10: 98.3688 | L10: 2 | M10: 0 | N10: 100.3688 | O10: 94.4460 | P10: 7
A11: 2013217005 | B11: 刘玮 | C11: 98.1025 | D11: 10 | E11: 0 | F11: 108.1025 | G11: 88.6773 | H11: 0 | I11: 0 | J11: 88.6773 | K11: 98.5938 | L11: 2 | M11: 0 | N11: 100.5938 | O11: 93.7540 | P11: 8
A12: 2013217011 | B12: 严佳敏 | C12: 99.0594 | D12: 8 | E12: 0 | F12: 107.0594 | G12: 88.7727 | H12: 0 | I12: 0 | J12: 88.7727 | K12: 98.5313 | L12: 2 | M12: 0 | N12: 100.5313 | O12: 93.6059 | P12: 9
A13: 2013217004 | B13: 宋瑜 | C13: 98.4222 | D13: 9 | E13: 0 | F13: 107.4222 | G13: 86.6114 | H13: 2 | I13: 0 | J13: 88.6114 | K13: 98.6031 | L13: 0 | M13: 0 | N13: 98.6031 | O13: 93.3727 | P13: 10
A14: 2013217012 | B14: 赵婧芳 | C14: 98.2875 | D14: 5 | E14: 0 | F14: 103.2875 | G14: 89.1522 | H14: 0 | I14: 0 | J14: 89.1522 | K14: 98.4375 | L14: 0 | M14: 0 | N14: 98.4375 | O14: 92.9078 | P14: 11
A15: 2013217001 | B15: 陈佳 | C15: 98.5713 | D15: 6.8 | E15: 0 | F15: 105.3713 | G15: 86.4264 | H15: 0 | I15: 0 | J15: 86.4264 | K15: 99.1500 | L15: 2 | M15: 0 | N15: 101.1500 | O15: 91.6877 | P15: 12
A16: 2013217007 | B16: 宋奇高 | C16: 97.5422 | D16: 9.8 | E16: 0 | F16: 107.3422 | G16: 85.3045 | H16: 0 | I16: 0 | J16: 85.3045 | K16: 98.5219 | L16: 3.4 | M16: 0 | N16: 101.9219 | O16: 91.3738 | P16: 13
A17: 2013217014 | B17: 赵密密 | C17: 98.2734 | D17: 5 | E17: 0 | F17: 103.2734 | G17: 85.2978 | H17: 0 | I17: 0 | J17: 85.2978 | K17: 98.2344 | L17: 0 | M17: 0 | N17: 98.2344 | O17: 90.1866 | P17: 14
A18: 2011217003 | B18: 刘暄 | C18: =[1]德育成绩!F13 -> 99.0137 | D18: =[1]德育成绩!E13 -> 9 | E18: 0 | F18: =[1]德育成绩!G13 -> 108.0137 | G18: =[1]智育成绩!E13 -> 88.0084 | H18: =[1]智育成绩!F13 -> 0 | I18: 0 | J18: =[1]智育成绩!G13 -> 88.0084 | K18: =[1]体育成绩!C13 -> 98.9938 | L18: =[1]体育成绩!D13 -> 2 | M18: 0 | N18: =[1]体育成绩!E13 -> 100.9938 | O18: =0.2*F18+0.7*J18+0.1*N18 -> 93.3080 | P18: 15

Sheet 法学
A1: 中国石油大学（北京）研究生综合测评汇总表（工商管理学院-法学专业）
A2: 学号 | B2: 姓名 | C2: 德育成绩 | G2: 智育成绩 | K2: 文体成绩 | O2: 总分 | P2: 名次
C3: 基础分 | D3: 奖励分 | E3: 惩罚分 | F3: 总 分 | G3: 学习成绩分 | H3: 奖励分 | I3: 惩罚分 | J3: 总 分 | K3: 基本分 | L3: 奖励分 | M3: 惩罚分 | N3: 总 分
A4: 2013217017 | B4: 陈梦静 | C4: 98.4819 | D4: 9 | E4: 0 | F4: =C4+D4 -> 107.4819 | G4: 91.7008 | H4: 0 | I4: 0 | J4: =G4+H4 -> 91.7008 | K4: 95.0938 | L4: 0 | M4: 0 | N4: =K4+L4 -> 95.0938 | O4: =F4*0.2+J4*0.7+N4*0.1 -> 95.1963 | P4: 1
A5: 2013217019 | B5: 刘书鑫 | C5: 98.9106 | D5: 8.8 | E5: 0 | F5: =C5+D5 -> 107.7106 | G5: 89.1675 | H5: 2 | I5: 0 | J5: =G5+H5 -> 91.1675 | K5: 98.2875 | L5: 0 | M5: 0 | N5: =K5+L5 -> 98.2875 | O5: =F5*0.2+J5*0.7+N5*0.1 -> 95.1881 | P5: 2
A6: 2013217018 | B6: 王超芮 | C6: 97.8930 | D6: 3 | E6: 0 | F6: =C6+D6 -> 100.8930 | G6: 90.4746 | H6: 0 | I6: 0 | J6: =G6+H6 -> 90.4746 | K6: 97.8281 | L6: 0 | M6: 0 | N6: =K6+L6 -> 97.8281 | O6: =F6*0.2+J6*0.7+N6*0.1 -> 93.2936 | P6: 3
A7: 2013217016 | B7: 刘梦莹 | C7: 98.4731 | D7: 2 | E7: 0 | F7: =C7+D7 -> 100.4731 | G7: 88.7429 | H7: 0 | I7: 0 | J7: =G7+H7 -> 88.7429 | K7: 98.0063 | L7: 0 | M7: 0 | N7: =K7+L7 -> 98.0063 | O7: =F7*0.2+J7*0.7+N7*0.1 -> 92.0153 | P7: 4
A8: 2013217015 | B8: 王文图 | C8: 98.4950 | D8: 6 | E8: 0 | F8: =C8+D8 -> 104.4950 | G8: 84.8923 | H8: 0 | I8: 0 | J8: =G8+H8 -> 84.8923 | K8: 97.7188 | L8: 0 | M8: 0 | N8: =K8+L8 -> 97.7188 | O8: =F8*0.2+J8*0.7+N8*0.1 -> 90.0955 | P8: 5

Sheet 管理科学与工程
A1: 中国石油大学（北京）研究生综合测评汇总表（工商管理学院-管理科学与工程专业）
A2: 学号 | B2: 姓名 | C2: 德育成绩 | G2: 智育成绩 | K2: 文体成绩 | O2: 总分 | P2: 名次
C3: 基础分 | D3: 奖励分 | E3: 惩罚分 | F3: 总 分 | G3: 学习成绩分 | H3: 奖励分 | I3: 惩罚分 | J3: 总 分 | K3: 基本分 | L3: 奖励分 | M3: 惩罚分 | N3: 总 分
A4: 2011217043 | B4: 李观 | C4: 98.5556 | D4: 14 | E4: 0 | F4: =C4+D4 -> 112.5556 | G4: 86.2777 | H4: 15.3333 | I4: 0 | J4: =G4+H4 -> 101.6110 | K4: 98.1344 | L4: 5 | M4: 0 | N4: =K4+L4 -> 103.1344 | O4: =F4*0.2+J4*0.7+N4*0.1 -> 103.9522 | P4: 1
A5: 2013217020 | B5: 董聪 | C5: 98.6583 | D5: 14 | E5: 0 | F5: 112.6583 | G5: 91.7500 | H5: 9.0667 | I5: 0 | J5: 100.8167 | K5: 98.5438 | L5: 2 | M5: 0 | N5: 100.5438 | O5: 103.1577 | P5: 2
A6: 2013217030 | B6: 余晨 | C6: 99.4072 | D6: 15.8 | E6: 0 | F6: 115.2072 | G6: 93.5833 | H6: 5.3333 | I6: 0 | J6: 98.9167 | K6: 98.9906 | L6: 5.0667 | M6: 0 | N6: 104.0573 | O6: 102.6888 | P6: 3
A7: 2013217022 | B7: 罗潇 | C7: 97.8969 | D7: 6 | E7: 0 | F7: 103.8969 | G7: 91.4444 | H7: 5.6 | I7: 0 | J7: 97.0444 | K7: 98.2750 | L7: 0 | M7: 0 | N7: 98.2750 | O7: 98.5380 | P7: 4
A8: 2013217023 | B8: 沈雅莉 | C8: 97.3538 | D8: 8 | E8: 0 | F8: 105.3538 | G8: 90.6895 | H8: 2 | I8: 0 | J8: 92.6895 | K8: 98.4438 | L8: 0 | M8: 0 | N8: 98.4438 | O8: 95.7978 | P8: 5
A9: 2013217029 | B9: 江玲玉 | C9: 98.4586 | D9: 8 | E9: 0 | F9: 106.4586 | G9: 89.9056 | H9: 2 | I9: 0 | J9: 91.9056 | K9: 98.2094 | L9: 0 | M9: 0 | N9: 98.2094 | O9: 95.4465 | P9: 6
A10: 2013217027 | B10: 王雪成 | C10: 98.5055 | D10: 6 | E10: 0 | F10: 104.5055 | G10: 89.6500 | H10: 0 | I10: 0 | J10: 89.6500 | K10: 98.2781 | L10: 5 | M10: 0 | N10: 103.2781 | O10: 93.9839 | P10: 7
A11: 2013217025 | B11: 于松民 | C11: 97.3363 | D11: 1 | E11: 0 | F11: 98.3363 | G11: 91.3784 | H11: 0 | I11: 0 | J11: 91.3784 | K11: 97.9531 | L11: 0 | M11: 0 | N11: 97.9531 | O11: 93.4274 | P11: 8
A12: 2013217033 | B12: 韩柳 | C12: 97.2984 | D12: 2 | E12: 0 | F12: 99.2984 | G12: 90.1964 | H12: 0 | I12: 0 | J12: 90.1964 | K12: 98.5156 | L12: 2 | M12: 0 | N12: 100.5156 | O12: 93.0487 | P12: 9
A13: 2013217021 | B13: 何培 | C13: 98.4031 | D13: 2 | E13: 0 | F13: 100.4031 | G13: 89.2278 | H13: 1 | I13: 0 | J13: 90.2278 | K13: 97.7313 | L13: 0 | M13: 0 | N13: 97.7313 | O13: 93.0132 | P13: 10
A14: 2013217024 | B14: 葛庆瑞 | C14: 98.3604 | D14: 12 | E14: 0 | F14: 110.3604 | G14: 83.6278 | H14: 0 | I14: 0 | J14: 83.6278 | K14: 98.4625 | L14: 5 | M14: 0 | N14: 103.4625 | O14: 90.9578 | P14: 11
A15: 2013217031 | B15: 李春节 | C15: 99.1399 | D15: 1 | E15: 0 | F15: 100.1399 | G15: 85.1515 | H15: 0 | I15: 0 | J15: 85.1515 | K15: 98.9719 | L15: 2 | M15: 0 | N15: 100.9719 | O15: 89.7312 | P15: 12
A16: 2013217028 | B16: 王怀宁 | C16: 98.5634 | D16: 6 | E16: 0 | F16: 104.5634 | G16: 81.5429 | H16: 0 | I16: 0 | J16: 81.5429 | K16: 98.4469 | L16: 2 | M16: 0 | N16: 100.4469 | O16: 88.0374 | P16: 13

Sheet 工商管理
A1: 中国石油大学（北京）研究生综合测评汇总表（工商管理学院-工商管理专业）
A2: 学号 | B2: 姓名 | C2: 德育成绩 | G2: 智育成绩 | K2: 文体成绩 | O2: 总分 | P2: 名次
C3: 基础分 | D3: 奖励分 | E3: 惩罚分 | F3: 总 分 | G3: 学习成绩分 | H3: 奖励分 | I3: 惩罚分 | J3: 总 分 | K3: 基本分 | L3: 奖励分 | M3: 惩罚分 | N3: 总 分
A4: 2013217057 | B4: 冯金 | C4: =[1]德育成绩!F17 -> 99.5147 | D4: =[1]德育成绩!E17 -> 16 | E4: 0 | F4: =[1]德育成绩!G17 -> 115.5147 | G4: =[1]智育成绩!E17 -> 92.6348 | H4: =[1]智育成绩!F17 -> 32.67 | I4: 0 | J4: =[1]智育成绩!G17 -> 125.3048 | K4: =[1]体育成绩!C17 -> 99.3976 | L4: =[1]体育成绩!D17 -> 5.4 | M4: 0 | N4: =[1]体育成绩!E17 -> 104.7976 | O4: =0.2*F4+0.7*J4+0.1*N4 -> 121.2960 | P4: 1
A5: 2013217036 | B5: 陈英超 | C5: =[1]德育成绩!F4 -> 99.4453 | D5: =[1]德育成绩!E4 -> 10 | E5: 0 | F5: =[1]德育成绩!G4 -> 109.4453 | G5: =[1]智育成绩!E4 -> 90.9692 | H5: =[1]智育成绩!F4 -> 13.2 | I5: 0 | J5: =[1]智育成绩!G4 -> 104.1692 | K5: =[1]体育成绩!C4 -> 99.3590 | L5: =[1]体育成绩!D4 -> 2 | M5: 0 | N5: =[1]体育成绩!E4 -> 101.3590 | O5: 104.9434 | P5: 2
A6: 2013217058 | B6: 特绍颖 | C6: =[1]德育成绩!F18 -> 99.2683 | D6: =[1]德育成绩!E18 -> 8.8 | E6: 0 | F6: =[1]德育成绩!G18 -> 108.0683 | G6: =[1]智育成绩!E18 -> 91.8833 | H6: =[1]智育成绩!F18 -> 9.67 | I6: 0 | J6: =[1]智育成绩!G18 -> 101.5533 | K6: =[1]体育成绩!C18 -> 99.1424 | L6: =[1]体育成绩!D18 -> 0 | M6: 0 | N6: =[1]体育成绩!E18 -> 99.1424 | O6: 102.6152 | P6: 3
A7: 2013217038 | B7: 李金燕 | C7: =[1]德育成绩!F5 -> 99.0737 | D7: =[1]德育成绩!E5 -> 13.6 | E7: 0 | F7: =[1]德育成绩!G5 -> 112.6737 | G7: =[1]智育成绩!E5 -> 88.5800 | H7: =[1]智育成绩!F5 -> 4 | I7: 0 | J7: =[1]智育成绩!G5 -> 92.5800 | K7: =[1]体育成绩!C5 -> 99.1681 | L7: =[1]体育成绩!D5 -> 2 | M7: 0 | N7: =[1]体育成绩!E5 -> 101.1681 | O7: 97.4575 | P7: 4
A8: 2013217060 | B8: 余海 | C8: =[1]德育成绩!F20 -> 99.3440 | D8: =[1]德育成绩!E20 -> 8 | E8: 0 | F8: =[1]德育成绩!G20 -> 107.3440 | G8: =[1]智育成绩!E20 -> 90.0696 | H8: =[1]智育成绩!F20 -> 0 | I8: 0 | J8: =[1]智育成绩!G20 -> 90.0696 | K8: =[1]体育成绩!C20 -> 99.4381 | L8: =[1]体育成绩!D20 -> 2 | M8: 0 | N8: =[1]体育成绩!E20 -> 101.4381 | O8: 94.6613 | P8: 5
A9: 2013217053 | B9: 赵蕤升 | C9: =[1]德育成绩!F14 -> 98.8777 | D9: =[1]德育成绩!E14 -> 13 | E9: 0 | F9: =[1]德育成绩!G14 -> 111.8777 | G9: =[1]智育成绩!E14 -> 84.7000 | H9: =[1]智育成绩!F14 -> 2 | I9: 0 | J9: =[1]智育成绩!G14 -> 86.7000 | K9: =[1]体育成绩!C14 -> 99.4810 | L9: =[1]体育成绩!D14 -> 16.33 | M9: 0 | N9: =[1]体育成绩!E14 -> 115.8110 | O9: 94.6466 | P9: 6
A10: 2013217049 | B10: 杨乾 | C10: =[1]德育成绩!F11 -> 98.7620 | D10: =[1]德育成绩!E11 -> 5 | E10: 0 | F10: =[1]德育成绩!G11 -> 103.7620 | G10: =[1]智育成绩!E11 -> 90.7867 | H10: =[1]智育成绩!F11 -> 0 | I10: 0 | J10: =[1]智育成绩!G11 -> 90.7867 | K10: =[1]体育成绩!C11 -> 99.3105 | L10: =[1]体育成绩!D11 -> 2 | M10: 0 | N10: =[1]体育成绩!E11 -> 101.3105 | O10: 94.4341 | P10: 7
A11: 2013217050 | B11: 乔江丽 | C11: =[1]德育成绩!F12 -> 99.0007 | D11: =[1]德育成绩!E12 -> 3 | E11: 0 | F11: =[1]德育成绩!G12 -> 102.0007 | G11: =[1]智育成绩!E12 -> 88.0217 | H11: =[1]智育成绩!F12 -> 3.2 | I11: 0 | J11: =[1]智育成绩!G12 -> 91.2217 | K11: =[1]体育成绩!C12 -> 99.0000 | L11: =[1]体育成绩!D12 -> 2 | M11: 0 | N11: =[1]体育成绩!E12 -> 101.0000 | O11: 94.3554 | P11: 8
A12: 2013217061 | B12: 周小龙 | C12: =[1]德育成绩!F21 -> 98.0743 | D12: =[1]德育成绩!E21 -> 8 | E12: 0 | F12: =[1]德育成绩!G21 -> 106.0743 | G12: =[1]智育成绩!E21 -> 89.6148 | H12: =[1]智育成绩!F21 -> 0 | I12: 0 | J12: =[1]智育成绩!G21 -> 89.6148 | K12: =[1]体育成绩!C21 -> 99.3062 | L12: =[1]体育成绩!D21 -> 2 | M12: 0 | N12: =[1]体育成绩!E21 -> 101.3062 | O12: 94.0759 | P12: 9
A13: 2013217052 | B13: 王兴萍 | C13: =[1]德育成绩!F13 -> 99.0137 | D13: =[1]德育成绩!E13 -> 9 | E13: 0 | F13: =[1]德育成绩!G13 -> 108.0137 | G13: =[1]智育成绩!E13 -> 88.0084 | H13: =[1]智育成绩!F13 -> 0 | I13: 0 | J13: =[1]智育成绩!G13 -> 88.0084 | K13: =[1]体育成绩!C13 -> 98.9938 | L13: =[1]体育成绩!D13 -> 2 | M13: 0 | N13: =[1]体育成绩!E13 -> 100.9938 | O13: 93.3080 | P13: 10
A14: 2013217034 | B14: 赵入辉 | C14: =[1]德育成绩!F2 -> 98.7510 | D14: =[1]德育成绩!E2 -> 2 | E14: 0 | F14: =[1]德育成绩!G2 -> 100.7510 | G14: =[1]智育成绩!E2 -> 88.9962 | H14: =[1]智育成绩!F2 -> 1.2 | I14: 0 | J14: =[1]智育成绩!G2 -> 90.1962 | K14: =[1]体育成绩!C2 -> 99.0200 | L14: =[1]体育成绩!D2 -> 0 | M14: 0 | N14: =[1]体育成绩!E2 -> 99.0200 | O14: 93.1895 | P14: 11
A15: 2013217035 | B15: 宋利泽 | C15: =[1]德育成绩!F3 -> 99.0790 | D15: =[1]德育成绩!E3 -> 2 | E15: 0 | F15: =[1]德育成绩!G3 -> 101.0790 | G15: =[1]智育成绩!E3 -> 88.3815 | H15: =[1]智育成绩!F3 -> 1.2 | I15: 0 | J15: =[1]智育成绩!G3 -> 89.5815 | K15: =[1]体育成绩!C3 -> 99.4686 | L15: =[1]体育成绩!D3 -> 2 | M15: 0 | N15: =[1]体育成绩!E3 -> 101.4686 | O15: 93.0697 | P15: 12
A16: 2013217046 | B16: 陈越 | C16: =[1]德育成绩!F9 -> 98.8243 | D16: =[1]德育成绩!E9 -> 5 | E16: 0 | F16: =[1]德育成绩!G9 -> 103.8243 | G16: =[1]智育成绩!E9 -> 87.4873 | H16: =[1]智育成绩!F9 -> 1 | I16: 0 | J16: =[1]智育成绩!G9 -> 88.4873 | K16: =[1]体育成绩!C9 -> 99.3962 | L16: =[1]体育成绩!D9 -> 2 | M16: 0 | N16: =[1]体育成绩!E9 -> 101.3962 | O16: 92.8456 | P16: 13
A17: 2013217044 | B17: 张凤 | C17: =[1]德育成绩!F8 -> 97.7537 | D17: =[1]德育成绩!E8 -> 3 | E17: 0 | F17: =[1]德育成绩!G8 -> 100.7537 | G17: =[1]智育成绩!E8 -> 87.8038 | H17: =[1]智育成绩!F8 -> 0 | I17: 0 | J17: =[1]智育成绩!G8 -> 87.8038 | K17: =[1]体育成绩!C8 -> 99.2833 | L17: =[1]体育成绩!D8 -> 2 | M17: 0 | N17: =[1]体育成绩!E8 -> 101.2833 | O17: 91.7418 | P17: 14
A18: 2013217054 | B18: 冯瑜 | C18: =[1]德育成绩!F15 -> 99.0263 | D18: =[1]德育成绩!E15 -> 4 | E18: 0 | F18: =[1]德育成绩!G15 -> 103.0263 | G18: =[1]智育成绩!E15 -> 86.7891 | H18: =[1]智育成绩!F15 -> 0 | I18: 0 | J18: =[1]智育成绩!G15 -> 86.7891 | K18: =[1]体育成绩!C15 -> 99.0800 | L18: =[1]体育成绩!D15 -> 2 | M18: 0 | N18: =[1]体育成绩!E15 -> 101.0800 | O18: 91.4657 | P18: 15
A19: 2013217042 | B19: 王金金 | C19: =[1]德育成绩!F7 -> 97.7183 | D19: =[1]德育成绩!E7 -> 3 | E19: 0 | F19: =[1]德育成绩!G7 -> 100.7183 | G19: =[1]智育成绩!E7 -> 87.2207 | H19: =[1]智育成绩!F7 -> 0 | I19: 0 | J19: =[1]智育成绩!G7 -> 87.2207 | K19: =[1]体育成绩!C7 -> 99.1467 | L19: =[1]体育成绩!D7 -> 0 | M19: 0 | N19: =[1]体育成绩!E7 -> 99.1467 | O19: 91.1128 | P19: 16
A20: 2011217069 | B20: 敖晓文 | C20: =[1]德育成绩!F25 -> 98.9530 | D20: =[1]德育成绩!E25 -> 1 | E20: 0 | F20: =[1]德育成绩!G25 -> 99.9530 | G20: =[1]智育成绩!E25 -> 85.1970 | H20: =[1]智育成绩!F25 -> 2 | I20: 0 | J20: =[1]智育成绩!G25 -> 87.1970 | K20: =[1]体育成绩!C25 -> 99.1490 | L20: =[1]体育成绩!D25 -> 0 | M20: 0 | N20: =[1]体育成绩!E25 -> 99.1490 | O20: 90.9434 | P20: 17
A21: 2013217056 | B21: 陈彦桥 | C21: =[1]德育成绩!F16 -> 98.7047 | D21: =[1]德育成绩!E16 -> 3 | E21: 0 | F21: =[1]德育成绩!G16 -> 101.7047 | G21: =[1]智育成绩!E16 -> 85.8467 | H21: =[1]智育成绩!F16 -> 0 | I21: 0 | J21: =[1]智育成绩!G16 -> 85.8467 | K21: =[1]体育成绩!C16 -> 99.1957 | L21: =[1]体育成绩!D16 -> 0 | M21: 0 | N21: =[1]体育成绩!E16 -> 99.1957 | O21: 90.3532 | P21: 18
A22: 2011217047 | B22: 李婧 | C22: =[1]德育成绩!F23 -> 98.7217 | D22: =[1]德育成绩!E23 -> 2 | E22: 0 | F22: =[1]德育成绩!G23 -> 100.7217 | G22: =[1]智育成绩!E23 -> 85.5340 | H22: =[1]智育成绩!F23 -> 0 | I22: 0 | J22: =[1]智育成绩!G23 -> 85.5340 | K22: =[1]体育成绩!C23 -> 98.9395 | L22: =[1]体育成绩!D23 -> 0 | M22: 0 | N22: =[1]体育成绩!E23 -> 98.9395 | O22: 89.9121 | P22: 19
A23: 2013217048 | B23: 罗健 | C23: =[1]德育成绩!F10 -> 98.6027 | D23: =[1]德育成绩!E10 -> 2 | E23: 0 | F23: =[1]德育成绩!G10 -> 100.6027 | G23: =[1]智育成绩!E10 -> 85.0409 | H23: =[1]智育成绩!F10 -> 0 | I23: 0 | J23: =[1]智育成绩!G10 -> 85.0409 | K23: =[1]体育成绩!C10 -> 99.4195 | L23: =[1]体育成绩!D10 -> 2 | M23: 0 | N23: =[1]体育成绩!E10 -> 101.4195 | O23: 89.7911 | P23: 20
A24: 2013217040 | B24: 刘骁晗 | C24: =[1]德育成绩!F6 -> 98.7413 | D24: =[1]德育成绩!E6 -> 7 | E24: 0 | F24: =[1]德育成绩!G6 -> 105.7413 | G24: =[1]智育成绩!E6 -> 78.5924 | H24: =[1]智育成绩!F6 -> 0 | I24: 0 | J24: =[1]智育成绩!G6 -> 78.5924 | K24: =[1]体育成绩!C6 -> 99.6090 | L24: =[1]体育成绩!D6 -> 33 | M24: 0 | N24: =[1]体育成绩!E6 -> 132.6090 | O24: 89.4238 | P24: 21
A25: 2011217073 | B25: 李少芳 | C25: =[1]德育成绩!F24 -> 97.5200 | D25: =[1]德育成绩!E24 -> 1 | E25: 0 | F25: =[1]德育成绩!G24 -> 98.5200 | G25: =[1]智育成绩!E24 -> 81.6240 | H25: =[1]智育成绩!F24 -> 0 | I25: 0 | J25: =[1]智育成绩!G24 -> 81.6240 | K25: =[1]体育成绩!C24 -> 99.0681 | L25: =[1]体育成绩!D24 -> 0 | M25: 0 | N25: =[1]体育成绩!E24 -> 99.0681 | O25: 86.7476 | P25: 22
A26: 2013217059 | B26: 刘璨 | C26: =[1]德育成绩!F19 -> 98.6317 | D26: =[1]德育成绩!E19 -> 1 | E26: 0 | F26: =[1]德育成绩!G19 -> 99.6317 | G26: =[1]智育成绩!E19 -> 80.4208 | H26: =[1]智育成绩!F19 -> 0 | I26: 0 | J26: =[1]智育成绩!G19 -> 80.4208 | K26: =[1]体育成绩!C19 -> 99.1176 | L26: =[1]体育成绩!D19 -> 2 | M26: 0 | N26: =[1]体育成绩!E19 -> 101.1176 | O26: 86.3327 | P26: 23
